[Event "FIDE WSTC-50-65 2022"]
[Site "Acqui Terme"]
[Date "2022.06.27"]
[Round "7.2"]
[White "Giorgadze, Giorgi"]
[Black "Shabalov, Alexander"]
[Result "0-1"]
[ECO "A40"]
[WhiteElo "2584"]
[BlackElo "2504"]
[Annotator "TA"]
[PlyCount "60"]
[EventDate "2022.06.20"]
[EventType "team-tourn"]
[EventCountry "ITA"]
[SourceTitle "playchess.com"]
[Source "ChessBase"]
[SourceQuality "1"]
[TimeControl "40/5400+30:1800+30"]

{[%evp 9,60,0,23,1,0,-6,0,0,0,-19,6,-23,-6,-58,-50,-46,-35,-45,-26,-46,-43,-48,-46,-39,-54,-33,-41,-37,-49,-36,-26,-64,-64,-99,-32,-198,-125,-239,-246,-235,-239,-365,-380,-497,-404,-487,-470,-507,-500,-588,-587,-1276,-1185]} 1. d4 {[%emt 0:01:00]} g6 {[%emt 0:01:00]} 2. g3 {[%emt 0:01:30]} Bg7 {[%emt 0:00:30]} 3. Bg2 {[%emt 0:00:00]} c5 {[%emt 0:01:30]} 4. e3 {[%emt 0:01:00]} Nf6 {[%emt 0:01:30]} 5. Ne2 {[%emt 0:00:30]} O-O {[%emt 0:03:30]} 6. O-O {[%emt 0:00:30] A40: Unusual replies to 1 d4.} d5 {[%emt 0:05:30]} 7. Nbc3 {[%emt 0:00:30]} cxd4 {[%emt 0:03:30]} 8. exd4 {[%emt 0:01:30] The position is equal.} Nc6 {[%emt 0:03:30]} 9. Be3 {[%emt 0:05:30]} b6 {[%emt 0:05:30]} 10. h3 {[%emt 0:10:30]} Ba6 {[%emt 0:01:30]} 11. g4 {[%emt 0:01:30]} ({White should play} 11. a4 $11) 11... e6 $15 {[%emt 0:03:30]} 12. Re1 {[%emt 0:04:30] [#]} Rc8 $146 {[%emt 0:01:30]} ({Predecessor:} 12... Bxe2 13. Nxe2 Na5 14. b3 Rc8 15. Rc1 b5 16. c3 Re8 17. Qd2 Qb6 18. Nf4 Bf8 {1-0 (37) Vujicic,M (2236)-Djurasinov,B (2175) Belgrade 2016}) 13. Ng3 {[%emt 0:03:30]} Ne8 {[%emt 0:03:30]} 14. a3 {[%emt 0:05:30]} Nd6 {[%emt 0:05:30]} 15. Nce2 $1 {[%emt 0:00:30]} Nc4 {[%emt 0:15:30]} 16. Bc1 {[%emt 0:02:30]} Qh4 {[%emt 0:00:00]} 17. c3 {[%emt 0:07:30]} e5 {[%emt 0:03:00]} 18. b3 {[%emt 0:08:30]} Nd6 {[%emt 0:04:30]} 19. Be3 {[%emt 0:02:30]} Rfd8 {[%emt 0:05:30]} 20. Qd2 {[%emt 0:12:30]} h6 {[%emt 0:00:30][%cal Od6e4] Inhibits Bg5.} 21. f3 {[%emt 0:03:30] Inhibits Ne4.} f5 {[%emt 0:07:30] Black is more active.} ({Better is} 21... Nb5 $17 {[%cal Ob5c3] Strongly threatening ...Nxc3!} 22. Bf2 exd4 23. cxd4 Nbxd4 $1 {[%mdl 512]}) 22. Nf1 $2 {[%emt 0:06:36] [#]} ({Don't play} 22. dxe5 Nxe5 23. gxf5 (23. Qxd5+ $2 Ndf7 $19) 23... gxf5 $17) (22. Bf2 $15 fxg4 23. fxg4) 22... Bxe2 {[%emt 0:04:19]} (22... f4 23. Bf2 Qf6 24. dxe5 Qxe5 25. Nxf4 Qxc3 26. Rac1 (26. Qxd5+ Nf7 $15) 26... Qxd2 27. Nxd2 $11) (22... fxg4 $1 $19 23. hxg4 Bxe2 24. Qxe2 exd4) 23. Qxe2 {[%emt 0:05:43]} (23. Bf2 $17 Qf6 24. dxe5 Nxe5 25. Qxe2 (25. Rxe2 fxg4 26. Bd4 Nxf3+ 27. Bxf3 Qxf3 $17) 25... fxg4 26. fxg4) 23... exd4 $19 {[%emt 0:01:00]} 24. Bf2 {[%emt 0:01:57]} Qf6 {[%emt 0:00:18]} 25. Rad1 {[%emt 0:00:26]} (25. Bxd4 $142 Nxd4 26. cxd4) 25... dxc3 {[%emt 0:02:12]} 26. Rxd5 {[%emt 0:00:29]} f4 {[%emt 0:00:54]} 27. Rc1 {[%emt 0:02:56]} Nf7 {[%emt 0:01:42] Black is clearly winning.} 28. Rxd8+ {[%emt 0:01:31]} Qxd8 {[%emt 0:00:51]} 29. Qe4 {[%emt 0:02:25]} Nd4 {[%emt 0:02:34] White must now prevent ...Ng5.} 30. b4 {[%emt 0:00:42]} Ng5 {[%emt 0:01:10] Weighted Error Value: White=0.54/Black=0.12 (very precise)} 0-1

[Event "FIDE WSTC-50-65 2022"]
[Site "Acqui Terme"]
[Date "2022.06.27"]
[Round "7.3"]
[White "Ehlvest, Jaan"]
[Black "Bagaturov, Giorgi"]
[Result "1-0"]
[ECO "A34"]
[WhiteElo "2517"]
[BlackElo "2413"]
[Annotator "TA"]
[PlyCount "100"]
[EventDate "2022.06.20"]
[EventType "team-tourn"]
[EventCountry "ITA"]
[SourceTitle "playchess.com"]
[Source "ChessBase"]
[SourceQuality "1"]
[TimeControl "40/5400+30:1800+30"]

{[%evp 9,100,18,24,2,22,8,5,12,16,-4,-4,-30,10,15,7,16,22,28,25,34,26,24,14,14,13,4,11,12,14,15,37,30,33,33,41,33,36,38,39,40,58,47,51,39,52,15,55,51,68,17,14,0,60,59,69,70,77,67,89,81,116,99,120,127,159,165,226,197,227,156,291,291,287,284,251,263,366,335,520,497,8256,8256,8177,8065,8058,7975,7954,7827,8341,1656,7937,6886,2599]} 1. e4 {[%emt 0:01:00][%cal Be2e4,Be4e5][%mdl 32]} c5 {[%emt 0:01:00]} 2. Nf3 {[%emt 0:00:00]} e6 {[%emt 0:00:30]} 3. c4 {[%emt 0:07:00]} Nc6 {[%emt 0:00:30]} 4. Be2 {[%emt 0:04:30]} Nf6 {[%emt 0:02:30]} 5. Nc3 {[%emt 0:01:30][%cal Bb1c3,Bc3e4,Be4c5][%mdl 32]} d5 {[%emt 0:06:30]} 6. e5 {[%emt 0:07:30] A34: Symmetrical English: 2 Nc3, lines with ...d5.} Ng4 {[%emt 0:12:30]} 7. cxd5 {[%emt 0:01:30]} exd5 {[%emt 0:00:00]} 8. Bb5 {[%emt 0:00:30] The position is equal.} d4 {[%emt 0:02:00]} 9. Ne4 {[%emt 0:05:30]} Bd7 {[%emt 0:16:30] [#]} 10. O-O $146 {[%emt 0:25:30]} (10. Bxc6 $5 Bxc6 11. d3 $11) ({Predecessor:} 10. Qe2 Ncxe5 11. Bxd7+ Qxd7 12. Nxe5 Nxe5 13. f4 d3 14. Qe3 Ng4 15. Nf6+ Kd8 16. Nxg4 Qxg4 {½-½ (53) Ehlvest,J (2581)-Quesada Perez,Y (2580) Merida 2008}) 10... Ngxe5 {[%emt 0:19:30]} 11. Re1 {[%emt 0:10:30] Strongly threatening Bxc6.} Be7 {[%emt 0:04:30] [#]} 12. Nxc5 $1 {[%emt 0:01:30]} Nxf3+ {[%emt 0:14:46]} (12... Bxc5 13. Nxe5) 13. Qxf3 {[%emt 0:00:00]} O-O {[%emt 0:01:28]} 14. Nxd7 {[%emt 0:02:00]} ({But not} 14. Nxb7 Qb6 15. Rxe7 Qxb5 $17) 14... Qxd7 {[%emt 0:00:04]} 15. d3 {[%emt 0:00:30]} Bb4 {[%emt 0:01:13]} 16. Rd1 {[%emt 0:08:30]} Rfe8 {[%emt 0:00:20]} 17. a3 {[%emt 0:00:30]} Bd6 {[%emt 0:01:20]} 18. Bd2 {[%emt 0:01:40]} a6 {[%emt 0:02:15]} 19. Bxc6 {[%emt 0:05:41]} Qxc6 {[%emt 0:03:48]} 20. Qxc6 {[%emt 0:00:43]} bxc6 {[%emt 0:00:03]} 21. Rac1 {[%emt 0:00:12]} c5 {[%emt 0:02:06]} 22. b4 {[%emt 0:00:15]} cxb4 {[%emt 0:00:27]} 23. axb4 {[%emt 0:00:05]} Rab8 {[%emt 0:05:36]} 24. Rc4 {[%emt 0:00:40]} Red8 {[%emt 0:00:16]} 25. Re1 {[%emt 0:03:59]} Bf8 {[%emt 0:01:39]} 26. g4 {[%emt 0:00:22]} Rb5 {[%emt 0:00:41]} 27. Kg2 {[%emt 0:02:10]} h6 {[%emt 0:00:38]} 28. Re4 {[%emt 0:00:33]} Rbd5 {[%emt 0:00:07]} 29. Rc6 {[%emt 0:00:29]} (29. h3 $14) 29... Rb5 $11 {[%emt 0:00:37]} 30. Rc4 {[%emt 0:00:26]} (30. Rxa6 $11 {should be considered.} Bxb4 31. Bf4) 30... Rbd5 $1 $14 {[%emt 0:00:05]} 31. f4 {[%emt 0:01:23]} g6 {[%emt 0:01:11]} 32. Kf3 {[%emt 0:00:29]} R5d6 {[%emt 0:00:31] Black is now going downhill.} 33. h4 {[%emt 0:02:01]} Rd5 {[%emt 0:00:09]} 34. Re5 {[%emt 0:01:13]} R5d7 {[%emt 0:01:08]} 35. h5 {[%emt 0:01:13]} Bg7 {[%emt 0:00:23]} 36. Rec5 {[%emt 0:01:07] White is more active.} gxh5 {[%emt 0:00:21]} 37. Rxh5 {[%emt 0:00:14]} Re8 {[%emt 0:00:54]} (37... Rd6 $142 38. f5 Rb6) 38. Rhc5 {[%emt 0:02:28]} Kh7 {[%emt 0:00:41]} 39. Rc7 {[%emt 0:00:23]} Ree7 {[%emt 0:00:09]} (39... Rde7 $16 {might work better.}) 40. Rxd7 $18 {[%emt 0:00:00]} Rxd7 {[%emt 0:00:00][%mdl 4096] Endgame KRB-KRB} 41. Rc6 {[%emt 0:01:14]} Rb7 {[%emt 0:01:04]} 42. Rxa6 {[%emt 0:04:30]} Bf8 {[%emt 0:01:30]} 43. f5 {[%emt 0:00:30][%cal Bf4f5,Bf5f6][%mdl 32]} Bxb4 {[%emt 0:00:30]} (43... Rb8 $142 44. Ke4 h5 45. gxh5 Bxb4) 44. Rxh6+ {[%emt 0:02:30] White is clearly winning.} Kg7 {[%emt 0:00:30]} (44... Kg8 $142 45. Bf4 Bf8) 45. f6+ {[%emt 0:00:30]} Kg8 {[%emt 0:00:30]} 46. Bxb4 {[%emt 0:00:30]} Rxb4 {[%emt 0:00:00]} 47. Ke4 {[%emt 0:00:30]} Rb1 {[%emt 0:01:00]} 48. g5 {[%emt 0:01:30]} Rg1 {[%emt 0:00:30]} 49. Rh5 {[%emt 0:00:00]} (49. Kxd4 $142 Rf1 50. Ke5) 49... Re1+ {[%emt 0:00:30]} 50. Kxd4 {[%emt 0:00:00]} Re8 {[%emt 0:00:30] Weighted Error Value: White=0.10 (very precise) /Black=0.22 (precise)} 1-0

[Event "FIDE WSTC-50-65 2022"]
[Site "Acqui Terme"]
[Date "2022.06.27"]
[Round "7.4"]
[White "Ioseliani, Nana"]
[Black "Sokolin, Leonid"]
[Result "1/2-1/2"]
[ECO "B32"]
[WhiteElo "2475"]
[BlackElo "2464"]
[Annotator "TA"]
[PlyCount "29"]
[EventDate "2022.06.20"]
[EventType "team-tourn"]
[EventCountry "ITA"]
[SourceTitle "playchess.com"]
[Source "ChessBase"]
[SourceQuality "1"]
[TimeControl "40/5400+30:1800+30"]

{[%evp 15,29,19,28,13,44,29,31,0,0,8,1,7,14,0,0,0]} 1. e4 {[%emt 0:01:00]} c5 {[%emt 0:01:00]} 2. Nf3 {[%emt 0:00:00][%cal Bg1f3,Bf3d4,Bd4b5][%mdl 32]} Nc6 {[%emt 0:00:00]} 3. d4 {[%emt 0:00:00]} cxd4 {[%emt 0:00:00]} 4. Nxd4 {[%emt 0:00:30]} e5 {[%emt 0:00:30]} 5. Nb5 {[%emt 0:00:30]} d6 {[%emt 0:00:00]} 6. c4 {[%emt 0:02:30]} Be6 {[%emt 0:00:00]} 7. N1c3 {[%emt 0:01:30]} a6 {[%emt 0:00:30]} 8. Na3 {[%emt 0:00:30]} Rc8 {[%emt 0:00:00]} 9. Be3 {[%emt 0:02:30] B32: Sicilian: Löwenthal and Kalashnikov Variations.} g6 {[%emt 0:06:00] [#]} 10. Nd5 $146 {[%emt 0:15:30]} ({Predecessor:} 10. Be2 Bg7 11. O-O Nf6 12. Qd2 O-O 13. Rfd1 Nd7 14. Qxd6 Nd4 15. Rxd4 exd4 16. Bxd4 {0-1 (34) Lobanov,S (2516)-Khanin,S (2482) Chess.com INT 2020}) 10... Bg7 {[%emt 0:10:30]} 11. Bb6 {[%emt 0:11:30] White is slightly better.} Qd7 {[%emt 0:00:30] The position is equal.} 12. Be2 {[%emt 0:03:30]} Nf6 {[%emt 0:10:30]} 13. Be3 {[%emt 0:05:30] Nb6 is the strong threat.} Qd8 {[%emt 0:05:30]} 14. Bb6 {[%emt 0:00:30]} Qd7 {[%emt 0:00:30]} 15. Be3 {[%emt 0:00:30] Weighted Error Value: White=0.12 (very precise) /Black=0.06 (flawless)} 1/2-1/2

[Event "FIDE WSTC-50-65 2022"]
[Site "Acqui Terme"]
[Date "2022.06.27"]
[Round "7.5"]
[White "Peelen, Piet"]
[Black "Adams, Michael"]
[Result "1/2-1/2"]
[ECO "E01"]
[WhiteElo "2354"]
[BlackElo "2698"]
[Annotator "TA"]
[PlyCount "74"]
[EventDate "2022.06.20"]
[EventType "team-tourn"]
[EventCountry "ITA"]
[SourceTitle "playchess.com"]
[Source "ChessBase"]
[SourceQuality "1"]
[TimeControl "40/5400+30:1800+30"]

{[%evp 9,74,0,30,27,35,9,30,12,14,20,8,6,18,7,0,0,0,0,36,32,47,42,58,47,47,26,24,23,25,28,30,26,32,7,14,6,9,16,26,0,13,1,18,0,0,0,0,0,0,0,0,0,0,0,38,0,0,0,0,0,0,0,0,0,0,0,0]} 1. d4 {[%emt 0:01:00]} Nf6 {[%emt 0:01:00]} 2. c4 {[%emt 0:00:00]} e6 {[%emt 0:00:00]} 3. g3 {[%emt 0:00:00]} d5 {[%emt 0:00:00]} 4. Nf3 {[%emt 0:00:00]} Bb4+ {[%emt 0:00:30]} 5. Bd2 {[%emt 0:00:00]} Bd6 {[%emt 0:00:00]} 6. Bg2 {[%emt 0:00:30] E01: Catalan: Early deviations.} c6 {[%emt 0:00:00]} 7. Qc2 {[%emt 0:01:30]} Nbd7 {[%emt 0:00:30]} 8. O-O {[%emt 0:03:30] White has an edge.} O-O {[%emt 0:00:30]} 9. Rd1 {[%emt 0:06:30]} Ne4 {[%emt 0:00:30] The main line 9...Ne4 scores better than 9...Qe7.} 10. Nc3 {[%emt 0:08:30][%cal Bb1c3,Bc3e2,Be2f4][%mdl 32]} Nxd2 {[%emt 0:00:30]} 11. Rxd2 {[%emt 0:18:30]} f5 {[%emt 0:01:30]} 12. e3 {[%emt 0:09:30]} Qe7 {[%emt 0:04:30]} 13. Ne2 {[%emt 0:07:30] [#]} a5 $146 {[%emt 0:09:30]} ({Predecessor:} 13... Nf6 14. Rdd1 Bd7 15. Nf4 Be8 16. a3 Ne4 17. Ne5 g5 18. Nfd3 h5 19. b4 Kh8 {1-0 (51) Topalov,V (2813)-Ponomariov,R (2727) Zuerich 2009}) 14. Nf4 {[%emt 0:05:30]} a4 {[%emt 0:03:30]} 15. Rc1 {[%emt 0:07:30]} Nf6 {[%emt 0:14:30]} 16. Qd1 {[%emt 0:04:30]} Bd7 {[%emt 0:00:30][%cal Bc8d7,Bd7e8,Be8h5][%mdl 32]} 17. Rdc2 {[%emt 0:06:27]} Be8 {[%emt 0:03:30]} 18. Ne5 {[%emt 0:07:53]} g5 {[%emt 0:05:30]} 19. Nfd3 {[%emt 0:00:02]} Bh5 {[%emt 0:00:30]} 20. Qe1 {[%emt 0:00:24]} Kh8 {[%emt 0:00:30]} 21. b4 {[%emt 0:01:32]} axb3 {[%emt 0:06:30]} 22. axb3 {[%emt 0:00:01]} Ra3 {[%emt 0:00:30]} 23. b4 {[%emt 0:01:38]} Rfa8 {[%emt 0:04:30]} 24. b5 {[%emt 0:05:37]} dxc4 {[%emt 0:06:30]} 25. Rxc4 {[%emt 0:00:10]} cxb5 {[%emt 0:00:30]} 26. Rc8+ {[%emt 0:00:23]} Be8 {[%emt 0:01:30]} 27. Rxa8 {[%emt 0:01:50]} Rxa8 {[%emt 0:00:30]} 28. Nc5 {[%emt 0:00:22] Pair of Knights!} Ra7 {[%emt 0:01:30]} 29. Qc3 {[%emt 0:03:25]} Kg7 {[%emt 0:04:30]} 30. Qb3 {[%emt 0:00:11]} Bxc5 {[%emt 0:01:30]} 31. dxc5 {[%emt 0:00:53]} Nd7 {[%emt 0:04:30]} 32. Nxd7 {[%emt 0:00:28]} (32. Nf3 {keeps more tension.} Kh6 33. Qb2 Qf6 34. Qxb5 Ra1 35. Qc4) 32... Bxd7 {[%emt 0:00:30] The position is equal.} 33. Bf1 {[%emt 0:00:11]} Bc6 {[%emt 0:02:30]} 34. Bxb5 {[%emt 0:00:02]} Bf3 {[%emt 0:01:30]} 35. Be2 {[%emt 0:01:00]} Bc6 {[%emt 0:07:16]} 36. Bb5 {[%emt 0:00:02]} Bf3 {[%emt 0:00:38]} 37. Be2 {[%emt 0:00:02]} Bc6 {Weighted Error Value: White=0.06 (flawless) /Black=0.07 (flawless)} 1/2-1/2

[Event "FIDE WSTC-50-65 2022"]
[Site "Acqui Terme"]
[Date "2022.06.27"]
[Round "7.6"]
[White "Short, Nigel D"]
[Black "Welling, Gerard"]
[Result "1-0"]
[ECO "B06"]
[WhiteElo "2622"]
[BlackElo "2262"]
[Annotator "TA"]
[PlyCount "55"]
[EventDate "2022.06.20"]
[EventType "team-tourn"]
[EventCountry "ITA"]
[SourceTitle "playchess.com"]
[Source "ChessBase"]
[SourceQuality "1"]
[TimeControl "40/5400+30:1800+30"]

{[%evp 9,55,29,65,56,64,56,70,54,70,57,61,52,47,37,78,35,47,43,43,35,46,22,62,57,46,49,68,66,86,83,81,51,85,99,95,75,72,69,74,88,128,67,170,68,429,378,345,329]} 1. e4 {[%emt 0:01:00]} c6 {[%emt 0:01:00]} 2. d4 {[%emt 0:00:00]} g6 {[%emt 0:00:30]} 3. c3 {[%emt 0:03:00]} Bg7 {[%emt 0:01:30]} 4. f4 {[%emt 0:03:30]} d5 {[%emt 0:00:30]} 5. e5 {[%emt 0:00:30]} h5 {[%emt 0:00:00]} 6. Na3 {[%emt 0:04:30] B06: Modern Defence.} Nh6 {[%emt 0:01:00]} 7. Nc2 {[%emt 0:00:30] [#]} a5 $146 {[%emt 0:08:30]} ({Predecessor:} 7... Bg4 8. Qd2 Bf5 9. Ne3 e6 10. b3 Nd7 11. Ba3 Qa5 12. Bd6 Bf8 13. b4 Qd8 14. Bxf8 Kxf8 15. Nf3 a5 16. a3 b5 17. Be2 axb4 18. cxb4 Nb6 19. O-O {½-½ (19) Petras,M-Simsa,O Prague 1994}) 8. a4 {[%emt 0:01:30] White is slightly better.} Na6 {[%emt 0:01:30]} 9. Ne3 {[%emt 0:07:30]} Nf5 {[%emt 0:13:30]} 10. Bd3 {[%emt 0:00:30]} Nxe3 {[%emt 0:11:30]} 11. Bxe3 {[%emt 0:02:30]} Bg4 {[%emt 0:02:30]} 12. Nf3 {[%emt 0:02:30]} e6 {[%emt 0:02:30]} 13. O-O {[%emt 0:00:00]} Bf8 {[%emt 0:08:30]} 14. Qd2 {[%emt 0:00:00]} Be7 {[%emt 0:00:30]} 15. Rfb1 {[%emt 0:08:30]} Nb8 {[%emt 0:08:30]} 16. b4 {[%emt 0:02:30]} axb4 {[%emt 0:00:00]} 17. cxb4 {[%emt 0:00:30][%cal Bc3b4,Bb4b5][%mdl 32]} Nd7 {[%emt 0:00:00]} 18. Qc2 {[%emt 0:04:30]} Bf5 {[%emt 0:02:30]} 19. Bxf5 {[%emt 0:01:30]} gxf5 {[%emt 0:00:30]} 20. b5 {[%emt 0:00:00]} c5 {[%emt 0:01:30]} 21. dxc5 {[%emt 0:00:00]} Bxc5 {[%emt 0:00:30]} 22. Nd4 {[%emt 0:05:30]} Bb6 {[%emt 0:06:30]} 23. Rc1 {[%emt 0:01:30] 0x0.00207c5e7e1edp-1022s more active pieces.} h4 {[%emt 0:02:30]} 24. Kh1 {[%emt 0:13:30]} Rg8 {[%emt 0:11:18]} 25. Qd1 {[%emt 0:09:30]} ({Better is} 25. a5 $16 Bxa5 26. Nb3) 25... Nf8 {[%emt 0:04:07]} ({Black should try} 25... Kf8 $14) 26. Ra3 {[%emt 0:07:30]} (26. a5 $18 Rxa5 27. Rxa5 Bxa5 28. Nb3) 26... Rc8 $2 {[%emt 0:04:35][%mdl 8192] [#]} (26... Ng6 $14) 27. Rxc8 {[%emt 0:01:30]} Qxc8 {[%emt 0:00:03]} 28. a5 {[%emt 0:00:00] Weighted Error Value: White=0.20 (precise) /Black=0.49} ({Weaker is} 28. Nxf5 exf5 29. Bxb6 Ne6 $18) 1-0

[Event "FIDE WSTC-50-65 2022"]
[Site "Acqui Terme"]
[Date "2022.06.27"]
[Round "7.7"]
[White "Tolhuizen, Ludo"]
[Black "Hebden, Mark L"]
[Result "0-1"]
[ECO "C48"]
[WhiteElo "2022"]
[BlackElo "2452"]
[Annotator "TA"]
[PlyCount "98"]
[EventDate "2022.06.20"]
[EventType "team-tourn"]
[EventCountry "ITA"]
[SourceTitle "playchess.com"]
[Source "ChessBase"]
[SourceQuality "1"]
[TimeControl "40/5400+30:1800+30"]

{[%evp 17,98,-3,0,-7,-3,0,0,-15,8,0,0,0,4,0,4,-1,0,0,0,0,0,-3,-3,-3,-3,-3,-3,-3,-8,-8,0,0,0,0,0,0,0,0,0,0,0,0,0,0,0,0,0,0,0,0,0,0,0,0,0,0,0,0,0,0,0,0,0,0,0,0,0,0,0,-33,-33,-33,-33,-609,-33,-581,-580,-527,-511,-438,-429,-325,-281]} 1. e4 {[%emt 0:01:00]} e5 {[%emt 0:01:00]} 2. Nf3 {[%emt 0:00:00]} Nc6 {[%emt 0:00:00]} 3. Nc3 {[%emt 0:00:00]} Nf6 {[%emt 0:00:00]} 4. Bb5 {[%emt 0:00:00]} Nd4 {[%emt 0:01:30]} 5. Nxd4 {[%emt 0:00:00]} exd4 {[%emt 0:00:30]} 6. e5 {[%emt 0:00:30]} dxc3 {[%emt 0:00:30]} 7. exf6 {[%emt 0:00:00]} Qxf6 {[%emt 0:00:30]} 8. dxc3 {[%emt 0:00:00]} Bc5 {[%emt 0:00:30]} 9. Qe2+ {[%emt 0:00:30]} Qe6 {[%emt 0:00:00]} 10. O-O {[%emt 0:00:30] C48: Four Knights: 4 Bb5, replies other than 4...Bb4.} Qxe2 {[%emt 0:04:00]} 11. Bxe2 {[%emt 0:00:30]} d6 {[%emt 0:00:30]} 12. Re1 {[%emt 0:06:30] The position is equal.} O-O {[%emt 0:02:30]} 13. Bf4 {[%emt 0:08:30]} a5 {[%emt 0:01:30]} 14. a4 {[%emt 0:00:30]} Be6 {[%emt 0:03:30]} 15. Rad1 {[%emt 0:09:30] [#]} Rfe8 $146 {[%emt 0:03:30]} ({Predecessor:} 15... h6 16. Bf3 Rae8 17. Be3 Bxe3 18. Rxe3 Bd7 19. Rde1 Rxe3 20. Rxe3 Be6 21. Kf1 Rb8 {1-0 (57) Nunn,J (2602)-Hebden,M (2540) Katerini 2014}) 16. Bd3 {[%emt 0:10:30]} h6 {[%emt 0:06:30]} 17. h4 {[%emt 0:05:30]} Kf8 {[%emt 0:01:30]} 18. Kf1 {[%emt 0:03:30]} Bd7 {[%emt 0:00:30]} 19. Bb5 {[%emt 0:12:30]} Bxb5+ {[%emt 0:02:30]} 20. axb5 {[%emt 0:00:30]} a4 {[%emt 0:00:30]} 21. Ra1 {[%emt 0:04:30]} Rxe1+ {[%emt 0:00:30]} 22. Kxe1 $11 {[%emt 0:02:30][%mdl 4096] Endgame KRB-KRB} Ke7 {[%emt 0:00:30]} 23. Ke2 {[%emt 0:00:00]} Kd7 {[%emt 0:02:30]} 24. Be3 {[%emt 0:04:00]} Bxe3 {[%emt 0:00:30]} 25. Kxe3 {[%emt 0:00:00] KR-KR} c6 {[%emt 0:00:30]} 26. bxc6+ {[%emt 0:01:00]} Kxc6 {[%emt 0:01:30]} 27. Kd3 {[%emt 0:01:30]} b5 {[%emt 0:00:30]} 28. Re1 {[%emt 0:00:30]} Kd7 {[%emt 0:00:30] Prevents Re7+.} 29. Re4 {[%emt 0:02:30]} a3 {[%emt 0:08:30]} 30. bxa3 {[%emt 0:00:30]} Rxa3 {[%emt 0:00:00]} 31. g3 {[%emt 0:09:26]} g5 {[%emt 0:09:00]} 32. hxg5 {[%emt 0:02:28]} hxg5 {[%emt 0:00:00]} 33. Rb4 {[%emt 0:01:20]} Kc6 {[%emt 0:03:00]} 34. f4 {[%emt 0:00:53]} g4 {[%emt 0:00:30]} 35. f5 {[%emt 0:10:02]} Ra4 {[%emt 0:01:30]} 36. Rb1 {[%emt 0:02:03]} Rc4 {[%emt 0:04:30]} 37. Re1 {[%emt 0:01:54]} Rc5 {[%emt 0:00:30] Hoping for ...Rd5+.} 38. Rf1 {[%emt 0:00:29]} Rd5+ {[%emt 0:03:30]} 39. Ke3 {[%emt 0:00:16]} Re5+ {[%emt 0:00:30]} 40. Kd3 {[%emt 0:00:00]} Kc5 {[%emt 0:00:00]} 41. Rf4 {[%emt 0:02:39]} f6 {[%emt 0:02:00]} 42. c4 {[%emt 0:09:30]} b4 {[%emt 0:04:30]} 43. Rf1 {[%emt 0:00:30]} d5 {[%emt 0:01:30]} 44. cxd5 {[%emt 0:00:00]} Rxd5+ {[%emt 0:00:30]} 45. Ke4 $2 {[%emt 0:06:55][%mdl 8192]} (45. Ke3 $15) 45... Rd4+ $19 {[%emt 0:15:30]} 46. Ke3 {[%emt 0:00:08]} Rc4 {[%emt 0:02:30]} 47. Kd2 {[%emt 0:10:10]} Kd5 {[%emt 0:13:30]} 48. Re1 {[%emt 0:01:15] [#]} Rd4+ $1 {[%emt 0:01:30]} 49. Kc1 {[%emt 0:00:07] [#]} Re4 $1 {[%emt 0:00:30] Inhibits Re6.  Weighted Error Value: White=0.22 (precise) /Black=0.01 (flawless)} 0-1